bitfinex/quotes_ETHUSD_20241116
["timestamp","ask_amount","ask_price","bid_price","bid_amount"]
[1731767382673,3.15209,3172.5,3171.6,3.1529]
[1731767382876,3.15238,3172.2,3171.6,3.1529]
[1731767383173,3.1522,3172.4,3171.6,3.1529]
[1731767383378,3.1523,3172.3,3171.7,3.46815]
[1731767383573,3.1524,3172.2,3171.5,3.15304]
[1731767384516,3.1524,3172.2,3171.4,3.15314]
[1731767384716,3.1526,3172.0,3171.4,3.15314]
[1731767384916,3.1526,3172.0,3171.3,3.15324]
[1731767385101,3.1526,3172.0,3171.4,0.630659]
[1731767385689,3.1524,3172.2,3171.6,3.15297]
[1731767386006,3.15224,3172.4,3171.7,3.15288]
[1731767386313,3.15232,3172.3,3171.7,3.15288]
[1731767387717,3.15232,3172.3,3171.5,3.15301]
[1731767387916,3.15232,3172.3,3171.6,3.15295]
[1731767388119,3.15224,3172.4,3171.7,3.15283]
[1731767388331,3.15229,3172.3,3171.7,3.15283]
[1731767388627,3.15224,3172.4,3171.7,3.15283]
[1731767388798,3.152,3172.6,3172.0,3.15251]
[1731767388994,0.01006694,3172.7,3172.1,3.15246]
[1731767389635,0.01006694,3172.7,3171.8,3.15276]
[1731767389816,3.15219,3172.4,3171.8,3.15276]
[1731767391001,3.15235,3172.3,3171.6,3.65796]
[1731767391322,3.15235,3172.3,3171.6,0.505]
[1731767391323,3.1525,3172.1,3171.6,0.505]
[1731767391826,3.15229,3172.3,3171.7,3.15281]
[1731767392534,3.15238,3172.2,3171.6,0.505]
[1731767392821,0.01006694,3172.7,3171.6,1.170809]
[1731767392985,3.16203694,3172.7,3172.0,3.15257]
[1731767393719,3.16203694,3172.7,3171.9,3.15259]
[1731767393720,3.15206,3172.6,3171.9,3.15259]
[1731767393931,3.16203694,3172.7,3172.0,3.15257]
[1731767395114,3.16203694,3172.7,3172.1,3.15246]
[1731767395718,3.15199,3172.6,3171.9,0.505]
[1731767396049,0.32627063,3172.7,3172.0,3.1525]
[1731767396208,3.16194694,3172.7,3172.1,3.15246]
[1731767397146,0.01006694,3172.7,3172.1,3.15246]
[1731767397644,3.16197694,3172.7,3172.1,3.15246]
[1731767397849,3.16197694,3172.7,3171.9,3.65768]
[1731767397850,3.15211,3172.5,3171.9,0.505]
[1731767398216,3.15211,3172.5,3171.9,3.15265]
[1731767398550,3.15211,3172.5,3171.8,0.505]
[1731767398753,0.300848,3171.9,3171.8,0.505]
[1731767399138,0.300848,3171.9,3171.8,6.65778]
[1731767400345,0.300848,3171.9,3171.8,7.73278011]
[1731767405157,0.300848,3171.9,3171.8,8.04778011]
[1731767408154,0.300848,3171.9,3171.8,43.04778011]
[1731767408353,0.01006694,3172.7,3172.0,0.315]
[1731767408557,0.01006694,3172.7,3172.6,3.15198]
[1731767409313,0.01006694,3172.7,3172.1,0.646764]
[1731767409529,0.01006694,3172.7,3171.8,1.58000011]
[1731767409530,3.15249,3172.1,3171.8,0.505]
[1731767410566,3.15231,3172.3,3171.8,0.505]
[1731767410765,3.15216,3172.5,3171.9,3.15266]
[1731767411129,3.16197694,3172.7,3172.0,3.15257]
[1731767411328,3.15206,3172.6,3172.0,3.15257]
[1731767411543,3.15206,3172.6,3171.9,3.15262]
[1731767411753,3.15206,3172.6,3171.9,4.133654]
[1731767412153,0.01006694,3172.7,3172.1,3.15247]
[1731767412462,3.1524,3172.2,3171.8,0.505]
[1731767412661,0.01006694,3172.7,3171.8,0.505]
[1731767412662,3.15221,3172.4,3171.8,0.505]
[1731767413023,3.15221,3172.4,3171.8,3.65776]
[1731767413255,3.15226,3172.4,3171.8,0.505]
[1731767413464,3.15226,3172.4,3171.8,3.65776]
[1731767413768,0.01006694,3172.7,3171.9,3.15266]
[1731767414266,0.01006694,3172.7,3171.8,4.486064]
[1731767414464,0.01006694,3172.7,3171.9,3.15267]
[1731767414918,0.01006694,3172.7,3171.8,3.65778]
[1731767415115,0.01006694,3172.7,3171.9,3.15265]
[1731767416424,0.01006694,3172.7,3171.9,3.15268]
[1731767416638,0.01006694,3172.7,3172.1,3.15242]
[1731767417157,0.01006694,3172.7,3172.0,0.365768]
[1731767417734,0.01006694,3172.7,3172.0,3.15257]
[1731767417936,0.01006694,3172.7,3171.8,6.65771]
[1731767418235,3.16196694,3172.7,3171.8,0.505]
[1731767418547,0.31619669,3172.6,3171.8,0.505]
[1731767418749,3.15222,3172.4,3171.8,0.505]
[1731767419060,3.15209,3172.5,3171.8,0.505]
[1731767419266,3.15239,3172.2,3171.8,0.505]
[1731767419429,0.315239,3172.2,3171.8,0.505]
[1731767419924,0.31619669,3172.6,3171.8,0.505]
[1731767420264,6.18434381,3172.7,3171.8,0.505]
[1731767420763,0.01006694,3172.7,3171.9,3.1526]
[1731767421125,0.01006694,3172.7,3172.0,3.15257]
[1731767421326,0.01006694,3172.7,3172.4,3.15217]
[1731767422327,0.01006694,3172.7,3172.3,3.15227]
[1731767423029,0.01006694,3172.7,3172.5,3.15206]
[1731767424352,0.01006694,3172.7,3172.6,3.15198]
[1731767425024,0.01006694,3172.7,3172.6,6.15198]
[1731767425229,0.01006694,3172.7,3172.6,7.082384]
[1731767426739,0.01006694,3172.7,3172.6,0.930404]
[1731767426983,0.01006694,3172.7,3172.6,6.15198]
[1731767430282,0.01006694,3172.7,3172.6,6.46698]
[1731767430657,0.01006694,3172.7,3172.6,6.15198]
[1731767432341,0.01006694,3172.7,3172.6,6.70198]
[1731767433686,6.94e-06,3172.7,3172.6,7.02698]
[1731767433889,6.94e-06,3172.7,3172.6,8.36128937]
[1731767435750,6.94e-06,3172.7,3172.6,7.48628937]
[1731767436091,6.94e-06,3172.7,3172.6,4.48628937]
[1731767436340,6.94e-06,3172.7,3172.5,3.15207]
[1731767437191,6.94e-06,3172.7,3172.6,3.15198]
[1731767437386,6.94e-06,3172.7,3172.5,3.15207]
[1731767437640,6.94e-06,3172.7,3172.6,3.15198]
[1731767438729,6.94e-06,3172.7,3172.6,6.15198]
[1731767438919,6.94e-06,3172.7,3172.6,7.41613369]
[1731767439319,0.14364194,3173.0,3172.9,7.01669]
[1731767439519,3.15018,3174.5,3173.8,3.15079]
[1731767439909,3.14998,3174.7,3173.9,3.15062]
[1731767440122,3.14998,3174.7,3174.0,3.15052]
[1731767440500,3.14968,3175.0,3174.2,3.15032]
[1731767440737,3.14898,3175.7,3174.3,3.15029]
[1731767440939,3.14952,3175.1,3174.4,3.15019]
[1731767441343,3.14932,3175.3,3174.6,3.14992]
[1731767441633,3.14851,3176.1,3174.9,3.14963]
[1731767441819,3.292905,3176.2,3175.2,3.1494]
[1731767442142,3.1487,3176.0,3175.1,3.14948]
[1731767442300,0.144435,3176.2,3175.3,3.1493]
[1731767442636,0.144435,3176.2,3174.8,3.0]
[1731767442637,0.144435,3176.2,3175.4,3.14919]
[1731767442839,3.292855,3176.2,3175.2,3.14936]
[1731767443058,3.6221215,3176.2,3175.4,3.14919]
[1731767443342,3.6221215,3176.2,3175.5,3.14909]
[1731767443846,3.6221215,3176.2,3174.8,3.0]
[1731767443847,3.14899,3175.7,3174.6,3.02237687]
[1731767444001,0.144435,3176.2,3174.7,3.0]
[1731767444204,0.144435,3176.2,3174.9,3.0]
[1731767444205,3.14879,3175.9,3174.9,3.0]
[1731767444426,0.144435,3176.2,3175.6,3.14899]
[1731767444611,0.144435,3176.2,3175.1,3.14943]
[1731767444815,3.14865,3176.0,3175.3,3.14928]
[1731767445016,0.144435,3176.2,3175.4,6.14912]
[1731767445220,0.144435,3176.2,3175.2,3.14939]
[1731767445221,0.144435,3176.2,3175.5,3.14909]
[1731767445915,0.144435,3176.2,3175.3,6.1493]
[1731767445916,3.14858,3176.1,3175.3,6.1493]
[1731767446126,3.14858,3176.1,3175.4,3.76413]
[1731767446328,3.14878,3175.9,3175.1,3.0]
[1731767446541,0.144435,3176.2,3174.9,0.91498]
[1731767446742,0.144435,3176.2,3175.0,3.14958]
[1731767446743,3.14892,3175.7,3175.0,3.14958]
[1731767447042,3.14882,3175.8,3175.1,3.0]
[1731767447547,3.1494,3175.2,3174.5,3.15009]
[1731767447842,3.02237687,3176.0,3174.1,0.01]
[1731767448055,3.02237687,3176.0,3174.0,3.02237687]
[1731767448056,3.14952,3175.1,3174.4,3.15011]
[1731767448205,3.14952,3175.1,3174.2,3.1504]
[1731767448407,3.02237687,3176.0,3173.9,0.3485789]
[1731767448408,3.14982,3174.8,3174.3,0.31504]
[1731767448652,3.14982,3174.8,3174.0,0.62193486]
[1731767448808,3.14982,3174.8,3174.1,3.15048]
[1731767449013,3.02,3176.1,3174.0,3.64431173]
[1731767449224,3.14968,3175.0,3174.3,3.15025]
[1731767449434,3.14968,3175.0,3174.2,3.15033]
[1731767449746,3.14972,3174.9,3174.3,0.315033]
[1731767449951,3.14977,3174.9,3174.3,0.315033]
[1731767450163,3.1493,3175.4,3174.5,3.0]
[1731767450384,3.14875,3175.9,3174.9,3.1497]
[1731767450595,3.14898,3175.7,3175.0,3.14952]
[1731767450800,3.14875,3175.9,3174.8,3.14978]
[1731767450801,0.3144435,3176.1,3175.1,6.14947]
[1731767451085,3.14871,3176.0,3175.2,3.14939]
[1731767451302,3.14878,3175.9,3175.2,3.14939]
[1731767451444,0.144435,3176.2,3175.2,0.629893]
[1731767451649,3.292865,3176.2,3175.5,3.14903]
[1731767451845,0.144435,3176.2,3175.6,3.14897]
[1731767452078,0.144435,3176.2,3175.7,3.14889]
[1731767452669,0.144435,3176.2,3175.6,0.314903]
[1731767453375,0.144435,3176.2,3175.6,3.463893]
[1731767453688,0.144435,3176.2,3175.6,3.14899]
[1731767453892,3.292855,3176.2,3175.6,3.14899]
[1731767454298,3.292855,3176.2,3175.5,3.14903]
[1731767454654,3.292855,3176.2,3175.3,3.14929]
[1731767454875,0.144435,3176.2,3175.4,0.614929]
[1731767455076,3.1488,3175.9,3175.2,3.0]
[1731767455351,3.14884,3175.8,3175.2,6.14937]
[1731767455580,3.14884,3175.8,3175.3,0.929887]
[1731767455765,0.144435,3176.2,3174.5,3.0]
[1731767455959,0.144435,3176.2,3174.9,3.0]
[1731767455960,3.14908,3175.6,3174.9,3.0]
[1731767456173,0.144435,3176.2,3174.9,3.0]
[1731767456497,0.144435,3176.2,3174.8,3.0]
[1731767456669,3.14931,3175.3,3174.7,0.64455399]
[1731767457057,3.14931,3175.3,3174.6,3.75223769]
[1731767457278,3.14893,3175.7,3174.7,6.14989]
[1731767457483,3.14933,3175.3,3174.8,3.0]
[1731767457691,3.14901,3175.6,3174.9,3.3]
[1731767457875,3.14922,3175.4,3174.9,0.3]
[1731767458994,3.14935,3175.3,3174.7,3.1499]
[1731767459296,0.144435,3176.2,3174.8,3.0]
[1731767459590,3.14914,3175.5,3174.9,3.0]
[1731767459891,3.14914,3175.5,3174.9,3.614978]
[1731767460254,3.14914,3175.5,3174.4,3.65361439]
[1731767460255,3.65361439,3175.9,3174.2,3.46537]
[1731767460458,3.14972,3174.9,3174.2,3.46537]
[1731767460799,3.14989,3174.8,3174.2,0.315]
[1731767461101,3.14901,3175.6,3174.1,3.65361439]
[1731767461256,3.14895,3175.7,3175.0,3.14959]
[1731767461863,3.14904,3175.6,3174.8,3.14979]
[1731767462073,3.14928,3175.4,3174.7,3.0]
[1731767462250,3.14851,3176.1,3174.1,3.66361439]
[1731767462251,3.14982,3174.8,3174.2,3.0]
[1731767462467,3.14969,3175.0,3174.0,0.61534005]
[1731767462667,3.14971,3174.9,3174.2,3.15039]
[1731767462867,3.14982,3174.8,3174.1,0.37660101]
[1731767463072,6.29802,3175.6,3174.1,0.37660101]
[1731767463355,3.1492,3175.4,3173.7,0.49229154]
[1731767463661,3.1502,3174.4,3173.7,3.64314154]
[1731767464265,3.15001,3174.6,3173.8,3.15077]
[1731767464470,3.15017,3174.5,3173.8,3.15077]
[1731767464664,3.15028,3174.4,3173.9,0.36430615]
[1731767464997,3.15057,3174.1,3173.7,0.49229154]
[1731767465322,3.15061,3174.0,3173.5,3.0]
[1731767465497,3.15051,3174.1,3172.9,1.259636]
[1731767465793,0.01,3175.2,3173.7,3.15083]
[1731767465794,3.15022,3174.4,3173.7,3.15083]
[1731767466396,3.14967,3175.0,3173.0,7.4306389]
[1731767466397,6.80341439,3174.8,3173.2,3.15131]
[1731767466605,6.80341439,3174.8,3173.0,6.29256947]
[1731767466606,3.15062,3174.0,3173.3,3.466381]
[1731767466805,3.15062,3174.0,3173.4,3.0]
[1731767467020,3.15078,3173.9,3173.3,0.315131]
[1731767467183,3.15092,3173.7,3173.4,0.3315131]
[1731767467519,3.15027,3174.4,3173.0,3.14099947]
[1731767467520,0.01,3174.3,3173.0,3.14099947]
[1731767467829,0.01,3174.3,3172.2,3.65361439]
[1731767467830,0.01,3174.0,3172.3,3.15224]
[1731767468017,0.01,3174.0,3172.5,35.3288445]
[1731767468018,3.15153,3173.1,3172.5,35.3288445]
[1731767468172,3.15153,3173.1,3172.5,38.14099947]
[1731767468376,3.15088,3173.8,3173.0,3.15152]
[1731767468569,3.15102,3173.6,3173.0,3.15152]
[1731767468806,3.15102,3173.6,3172.7,3.15179]
[1731767468807,3.15077,3173.9,3172.7,35.0]
[1731767469015,0.01,3174.7,3173.2,3.0]
[1731767469226,6.65361439,3174.8,3173.2,3.0]
[1731767469227,3.15047,3174.2,3173.2,6.15131]
[1731767469539,3.66361439,3175.6,3174.1,3.15049]
[1731767469727,3.66361439,3175.6,3174.3,3.15027]
[1731767469728,3.65361439,3175.6,3174.3,3.15027]
[1731767470022,3.65361439,3175.6,3174.0,3.0]
[1731767470023,3.15001,3174.6,3174.0,3.0]
[1731767470196,3.15001,3174.6,3173.9,3.15067]
[1731767470197,3.1497,3174.9,3174.2,6.15038]
[1731767470403,3.1497,3174.9,3174.3,3.15029]
[1731767470587,3.1497,3174.9,3174.4,0.615029]
[1731767470786,3.1499,3174.7,3174.4,0.615029]
[1731767471027,3.14927,3175.4,3174.2,3.0]
[1731767471322,3.14976,3174.9,3174.3,3.15029]
[1731767471528,0.36636144,3175.5,3174.3,6.29128947]
[1731767471734,0.36636144,3175.5,3174.5,3.15009]
[1731767471735,3.14944,3175.2,3174.5,3.15009]
[1731767471885,3.0,3175.8,3174.3,3.14099947]
[1731767472085,3.14997,3174.7,3174.2,3.0]
[1731767472735,3.15001,3174.6,3174.0,3.0]
[1731767472886,3.49257532,3175.8,3173.7,3.0]
[1731767472887,3.65361439,3175.2,3173.7,3.0]
[1731767473091,3.15036,3174.3,3173.7,3.0]
[1731767473393,3.14977,3174.9,3173.8,0.615097]
[1731767473703,3.15015,3174.5,3173.8,0.615097]
[1731767473905,3.15022,3174.4,3173.7,3.15089]
[1731767474221,3.15022,3174.4,3173.8,3.0]
[1731767474401,3.14991,3174.7,3173.4,35.62541331]
[1731767474402,3.1499,3174.7,3173.4,35.0]
[1731767474610,3.15091,3173.7,3172.9,3.15167]
[1731767474920,3.15044,3174.2,3172.9,3.15167]
[1731767474921,3.151,3173.6,3172.9,3.15167]
[1731767475095,3.151,3173.6,3173.0,0.37865306]
[1731767475639,3.15111,3173.5,3173.0,0.37865306]
[1731767475825,3.15082,3173.8,3173.0,3.37865306]
[1731767475994,3.15141,3173.2,3171.8,4.412761]
[1731767476194,3.15141,3173.2,3172.4,3.1521]
[1731767476401,3.15141,3173.2,3172.5,3.15203]
[1731767476614,3.15168,3173.0,3172.2,3.15236]
[1731767476894,3.15176,3172.9,3172.3,0.315236]
[1731767477435,3.15179,3172.8,3172.2,3.15238]
[1731767478301,3.15159,3173.0,3172.2,3.15238]
[1731767478522,3.15159,3173.0,3172.3,3.0]
[1731767478733,3.15172,3172.9,3172.3,3.0]
[1731767478945,3.15172,3172.9,3172.4,0.615238]
[1731767479232,3.15172,3172.9,3171.9,35.0]
[1731767479233,3.15226,3172.4,3171.6,3.15289]
[1731767479550,3.15241,3172.2,3171.1,1.260267]
[1731767479728,3.1522,3172.4,3171.2,3.15338]
[1731767479899,3.15249,3172.1,3171.3,0.4413647]
[1731767480095,3.15199,3172.6,3171.7,3.15281]
[1731767480411,0.01,3173.2,3171.7,3.15281]
[1731767480412,3.15149,3173.1,3171.7,3.15281]
[1731767480634,3.15216,3172.5,3171.7,3.15281]
[1731767481121,3.15221,3172.4,3171.7,3.15281]
[1731767481442,3.152,3172.6,3171.9,3.15266]
[1731767481595,3.15155,3173.1,3171.8,0.315281]
[1731767482224,3.15226,3172.4,3171.7,3.15288]
[1731767482592,3.15226,3172.4,3171.8,3.0]
[1731767483032,3.15226,3172.4,3171.7,3.15288]
[1731767483033,3.15199,3172.6,3171.7,3.0]
[1731767483334,3.15199,3172.6,3171.8,3.0]
[1731767483649,3.15218,3172.4,3171.8,0.615286]
[1731767483931,3.15218,3172.4,3171.8,3.0]
[1731767484337,6.81507439,3173.2,3171.8,3.0]
[1731767484338,3.15181,3172.8,3171.8,6.15276]
[1731767484540,3.15181,3172.8,3172.1,3.15247]
[1731767484691,3.15181,3172.8,3172.1,0.630515]
[1731767485007,3.1522,3172.4,3172.1,0.630515]
[1731767485206,3.15248,3172.1,3171.6,3.0]
[1731767485440,3.15259,3172.0,3171.4,3.0]
[1731767485796,3.1524,3172.2,3171.4,3.0]
[1731767486021,3.15218,3172.4,3171.5,0.34413647]
[1731767486189,3.15218,3172.4,3171.0,0.06305741]
[1731767486190,3.15218,3172.4,3171.4,3.15317]
[1731767486395,3.65361439,3172.8,3171.6,3.15297]
[1731767486645,3.15241,3172.2,3171.4,3.1531]
[1731767486809,3.15219,3172.4,3171.4,3.1531]
[1731767487000,3.1518,3172.8,3172.1,3.15246]
[1731767487201,3.15194,3172.7,3172.0,3.0]
[1731767487511,3.15194,3172.7,3172.0,3.15257]
[1731767487714,0.01,3174.4,3172.3,6.65361439]
[1731767488027,3.65361439,3174.4,3172.9,3.15164]
[1731767488229,3.15096,3173.7,3173.0,35.0]
[1731767488734,3.15099,3173.6,3172.5,3.0]
[1731767489040,3.15099,3173.6,3172.1,0.315257]
[1731767489041,3.15128,3173.4,3172.8,3.0]
[1731767489343,3.15128,3173.4,3172.7,3.15188]
[1731767489344,3.15062,3174.0,3172.9,0.06303182]
[1731767489495,3.15071,3173.9,3173.2,3.15137]
[1731767489697,6.30108,3174.1,3173.1,3.15149]
[1731767489897,6.30108,3174.1,3173.0,3.15157]
[1731767489898,3.15076,3173.9,3173.0,3.15157]
[1731767490138,3.15087,3173.8,3173.1,0.315157]
[1731767490297,3.15065,3174.0,3173.2,3.15139]
[1731767490493,3.15065,3174.0,3173.3,3.15124]
[1731767490737,3.15077,3173.9,3172.8,3.65361439]
[1731767491040,3.15077,3173.9,3172.6,0.3]
[1731767491041,6.30158,3173.8,3172.6,0.3]
[1731767491200,3.15156,3173.1,3172.6,0.3]
[1731767491553,3.15159,3173.0,3172.3,3.15226]
[1731767491954,3.15156,3173.1,3172.3,3.15226]
[1731767492154,3.1516,3173.0,3172.4,3.15217]
[1731767492447,3.15142,3173.2,3172.5,3.0]
[1731767492646,3.15142,3173.2,3172.6,0.615217]
[1731767493057,3.15151,3173.1,3172.6,0.615217]
[1731767493346,3.1519,3172.7,3172.1,3.630257]
[1731767494147,3.15218,3172.4,3171.6,3.15295]
[1731767494331,3.1524,3172.2,3171.3,3.15318]
[1731767495209,3.1524,3172.2,3171.5,3.15307]
[1731767495463,3.15229,3172.3,3171.6,0.315307]
[1731767495675,3.15251,3172.1,3171.2,6.80696439]
[1731767496282,3.15251,3172.1,3171.4,3.15313]
[1731767496586,3.15261,3172.0,3171.2,6.80696439]
[1731767496738,3.15261,3172.0,3171.2,0.99605144]
[1731767497068,3.15261,3172.0,3171.3,3.15327]
[1731767498361,0.01,3172.4,3170.9,3.15364]
[1731767498562,3.01,3172.5,3170.8,0.63079636]
[1731767498563,3.15308,3171.5,3170.8,0.63079636]
[1731767498788,3.15328,3171.3,3170.3,3.65361439]
[1731767498936,3.15308,3171.5,3170.6,3.15388]
[1731767499283,3.15338,3171.2,3170.7,0.315388]
[1731767499452,3.15318,3171.4,3170.7,0.315388]
[1731767499654,3.95561439,3172.3,3170.7,0.315388]
[1731767499655,3.16238,3172.2,3171.2,3.15336]
[1731767499889,3.15275,3171.9,3171.2,3.15336]
[1731767500182,3.15278,3171.8,3171.2,3.15336]
[1731767500478,3.15231,3172.3,3171.5,3.15307]
[1731767500638,0.02,3172.5,3170.9,3.15367]
[1731767500845,3.15297,3171.7,3170.9,3.15367]
[1731767501042,3.15297,3171.7,3171.0,3.15355]
[1731767501275,3.15248,3172.1,3170.7,3.315388]
[1731767501475,3.15243,3172.2,3171.4,3.15314]
[1731767501777,3.1526,3172.0,3171.3,3.15324]
[1731767502158,0.315243,3172.1,3170.8,0.06306766]
[1731767502159,3.467763,3172.1,3170.9,6.30734]
[1731767502460,3.15194,3172.7,3171.2,3.15332]
[1731767502461,3.15228,3172.3,3171.2,3.15332]
[1731767502646,0.01,3172.5,3171.0,3.15352]
[1731767502647,3.1526,3172.0,3171.0,3.15352]
[1731767502849,3.1526,3172.0,3171.2,3.1533]
[1731767503275,3.15268,3171.9,3171.0,3.15352]
[1731767503492,3.15288,3171.7,3171.0,3.15352]
[1731767503799,3.15285,3171.8,3171.1,0.315352]
[1731767503996,3.15285,3171.8,3171.1,3.15343]
[1731767504206,3.15294,3171.7,3171.0,3.15352]
[1731767504423,3.15285,3171.8,3171.0,3.15352]
[1731767504601,0.02,3172.3,3170.7,3.469158]
[1731767504602,3.15298,3171.6,3170.7,3.469158]
[1731767504776,3.15438,3170.2,3169.6,0.49358635]
[1731767505113,3.1547,3169.9,3169.6,0.49358635]
[1731767505325,3.1547,3169.9,3169.1,3.15545]
[1731767505475,3.1547,3169.9,3169.2,0.315545]
[1731767505813,3.15447,3170.2,3169.2,0.315545]
[1731767506017,0.02,3170.7,3169.1,3.15543]
[1731767506319,0.02,3170.7,3169.2,3.15528]
[1731767506320,3.15477,3169.8,3169.2,3.15528]
[1731767506812,3.15477,3169.8,3169.0,6.15549]
[1731767507121,3.15458,3170.0,3169.3,3.15524]
[1731767507325,3.15478,3169.8,3169.3,0.315524]
[1731767507619,3.15453,3170.1,3169.2,3.15533]
[1731767507772,0.01,3170.5,3168.6,3.65361439]
[1731767507975,3.15427,3170.3,3168.8,3.15576]
[1731767508168,3.15427,3170.3,3169.6,3.15495]
[1731767508573,3.15407,3170.6,3169.6,3.15495]
[1731767508574,3.15407,3170.6,3169.6,0.630993]
[1731767508776,3.15407,3170.6,3169.9,3.15466]
[1731767509007,8.77,3171.8,3169.0,6.71670916]
[1731767509008,0.02,3171.6,3170.0,35.0]
[1731767509324,3.15366,3171.0,3170.2,3.15435]
[1731767509674,3.15366,3171.0,3170.2,1.52606219]
[1731767509984,3.15368,3170.9,3170.1,3.15438]
[1731767510302,0.01,3171.5,3170.1,3.15438]
[1731767510303,3.1535,3171.1,3170.1,3.15438]
[1731767510484,3.66361439,3171.7,3170.3,3.1542]
[1731767510485,3.15328,3171.3,3170.3,3.1542]
[1731767510683,3.15328,3171.3,3170.4,3.46958]
[1731767510884,3.15291,3171.7,3170.5,3.15407]
[1731767511117,3.15228,3172.3,3171.1,3.15346]
[1731767511328,3.15301,3171.6,3171.0,3.15356]
[1731767511608,3.15301,3171.6,3171.0,3.468916]
[1731767511813,3.15301,3171.6,3170.4,0.31542]
[1731767511814,3.15301,3171.6,3170.8,3.15373]
[1731767512015,3.15312,3171.5,3170.8,3.15373]
[1731767512181,3.15307,3171.6,3170.6,3.0]
[1731767512388,3.15309,3171.5,3170.7,3.15379]
[1731767513117,3.15258,3172.0,3170.6,0.346939]
[1731767513273,3.15315,3171.5,3170.7,3.15386]
[1731767513474,3.15315,3171.5,3170.8,3.15375]
[1731767514228,3.15288,3171.7,3170.9,3.15366]
[1731767514411,3.15299,3171.6,3170.8,3.15375]
[1731767514597,0.6865224,3171.7,3170.8,3.15375]
[1731767514797,3.15309,3171.5,3170.8,3.15375]
[1731767514998,3.8394524,3171.7,3170.4,0.346966]
[1731767515205,3.8394524,3171.7,3170.9,3.1536]
[1731767515431,3.15299,3171.6,3170.9,3.1536]
[1731767515589,3.1529,3171.7,3170.7,3.15386]
[1731767515796,3.1529,3171.7,3170.5,0.3501216]
[1731767516105,4.1546944,3171.7,3171.0,3.15356]
[1731767516313,3.1529,3171.7,3171.1,3.15347]
[1731767516487,3.15278,3171.8,3171.1,3.15347]
[1731767517241,3.15281,3171.8,3171.2,3.15334]
[1731767517448,3.15296,3171.7,3170.4,3.0]
[1731767517602,3.15296,3171.7,3170.0,0.55]
[1731767517603,3.65361439,3172.1,3170.7,3.15383]
[1731767517809,3.15315,3171.5,3170.7,3.15383]
[1731767518116,3.15315,3171.5,3170.8,3.15377]
[1731767519336,3.15315,3171.5,3170.6,6.15395]
[1731767519542,3.15271,3171.9,3170.0,0.55]
[1731767519746,3.15271,3171.9,3171.1,3.15339]
[1731767520042,3.15271,3171.9,3171.2,3.15335]
[1731767520243,3.15271,3171.9,3171.3,3.15326]
[1731767520554,0.71631144,3172.0,3170.7,0.06306743]
[1731767520700,3.15231,3172.3,3171.5,3.15305]
[1731767521165,3.15238,3172.2,3171.3,3.15326]
[1731767521452,3.15259,3172.0,3171.3,3.15326]
[1731767521744,3.15238,3172.2,3171.4,3.15308]
[1731767521968,3.15251,3172.1,3171.4,3.15308]
[1731767522450,3.15238,3172.2,3171.4,3.15308]
[1731767522823,3.15249,3172.1,3171.4,3.15308]
[1731767523008,0.302,3172.5,3171.4,3.15308]
[1731767523207,3.1523,3172.3,3171.5,3.15307]
[1731767523409,3.1525,3172.1,3171.5,3.15307]
[1731767523941,3.1523,3172.3,3170.9,0.615377]
[1731767523942,3.1523,3172.3,3171.0,0.06306343]
[1731767524142,3.1524,3172.2,3171.5,3.15299]
[1731767524349,3.50066,3172.2,3171.5,3.15299]
[1731767524646,0.34826,3172.2,3171.6,3.15297]
[1731767524861,3.15231,3172.3,3171.6,3.15297]
[1731767525145,0.02,3172.9,3171.3,3.15321]
[1731767525146,3.15248,3172.2,3171.3,3.15321]
[1731767525357,3.15264,3172.0,3171.4,3.15316]
[1731767525663,3.15248,3172.2,3171.5,3.15307]
[1731767525805,3.15219,3172.4,3171.5,3.15299]
[1731767526012,3.15219,3172.4,3170.9,0.615377]
[1731767526013,3.15288,3171.7,3170.3,4.28191469]
[1731767526248,3.15308,3171.5,3170.8,3.1537]
[1731767526411,0.315288,3171.6,3170.8,3.1537]
[1731767526412,3.15321,3171.4,3170.8,3.1537]
[1731767527034,0.315288,3171.6,3170.3,3.65361439]
[1731767527346,3.15271,3171.9,3171.1,3.15347]
[1731767527558,0.315271,3171.8,3171.2,3.1533]
[1731767527855,3.468051,3171.8,3170.8,3.15368]
[1731767528152,0.315271,3171.8,3170.9,3.1536]
[1731767528358,3.15308,3171.5,3170.9,3.1536]
[1731767528507,3.15288,3171.7,3170.9,3.1536]
[1731767528704,3.15308,3171.5,3170.7,3.15385]
[1731767528942,3.15328,3171.3,3170.7,3.15385]
[1731767529623,3.15328,3171.3,3170.4,6.15413]
[1731767529624,3.15308,3171.5,3170.4,3.0]
[1731767529818,3.15291,3171.7,3170.4,3.0]
[1731767529819,3.15291,3171.7,3171.0,3.15351]
[1731767530118,3.1527,3171.9,3171.1,3.15339]
[1731767530317,3.1525,3172.1,3171.1,3.15339]
[1731767530318,3.15279,3171.8,3171.1,3.15339]
[1731767530720,3.1525,3172.1,3171.1,3.15339]
[1731767530914,3.15267,3172.0,3171.3,3.15327]
[1731767531118,0.630517,3171.9,3171.4,3.15317]
[1731767531413,0.630517,3171.9,3171.1,3.15339]
[1731767531414,0.630517,3171.9,3171.2,3.15329]
[1731767531618,3.15268,3171.9,3171.2,3.15329]
[1731767531827,3.15292,3171.7,3170.8,3.15375]
[1731767532262,0.01,3172.3,3170.7,3.15387]
[1731767532442,3.15327,3171.4,3170.7,3.15387]
[1731767532754,0.01,3172.0,3170.5,3.15406]
[1731767533000,3.15329,3171.3,3170.7,3.1538]